bitfinex/quotes_BTCUSD_20250703
["timestamp","ask_amount","ask_price","bid_price","bid_amount"]
[1751537899107,6.59776807,110100.0,110090.0,0.00034041]
[1751537899311,6.64776807,110100.0,110090.0,0.00034041]
[1751537904437,6.59776807,110100.0,110090.0,0.00034041]
[1751537904642,6.64776807,110100.0,110090.0,0.00034041]
[1751537906358,6.59776807,110100.0,110090.0,0.00034041]
[1751537906558,6.64776807,110100.0,110090.0,0.00034041]
[1751537908414,6.59776807,110100.0,110090.0,0.00034041]
[1751537908645,6.64776807,110100.0,110090.0,0.00034041]
[1751537909653,6.59776807,110100.0,110090.0,0.00034041]
[1751537909859,6.64776807,110100.0,110090.0,0.00034041]
[1751537912316,6.55206807,110100.0,110090.0,0.00034041]
[1751537913070,6.57692742,110100.0,110090.0,0.00034041]
[1751537913275,7.58474159,110100.0,110090.0,0.00034041]
[1751537913446,7.58474159,110100.0,110090.0,1e-08]
[1751537913654,7.6572473,110100.0,110090.0,1e-08]
[1751537914121,7.6552473,110100.0,110090.0,1e-08]
[1751537914536,7.6602473,110100.0,110090.0,1e-08]
[1751537914736,6.69501599,110100.0,110090.0,1e-08]
[1751537914984,6.79639897,110100.0,110090.0,1e-08]
[1751537915357,6.70576683,110100.0,110090.0,1e-08]
[1751537915924,6.1306632,110100.0,110090.0,1e-08]
[1751537917223,6.1306632,110100.0,110040.0,0.0316]
[1751537917224,0.16046405,110050.0,110040.0,0.0002]
[1751537917434,5.50906576,110050.0,110040.0,0.00024698]
[1751537917873,5.49316576,110050.0,110040.0,0.00024698]
[1751537918114,6.16465343,110050.0,110040.0,0.00024698]
[1751537918315,6.18005343,110050.0,110040.0,0.00024698]
[1751537918496,6.19735343,110050.0,110040.0,0.00024698]
[1751537918675,6.26464192,110050.0,110040.0,0.00024698]
[1751537919446,6.22839819,110050.0,110040.0,0.00024698]
[1751537919897,6.22839819,110050.0,110040.0,0.00424698]
[1751537920116,6.25631538,110050.0,110040.0,0.00424698]
[1751537920320,6.17461538,110050.0,110040.0,0.00424698]
[1751537920465,6.17461538,110050.0,110040.0,0.00024698]
[1751537920911,6.17561538,110050.0,110040.0,0.00024698]
[1751537921500,6.17556738,110050.0,110040.0,0.00024698]
[1751537922929,5.83076261,110050.0,110040.0,0.00024698]
[1751537923154,5.83076261,110050.0,110040.0,0.03204698]
[1751537923473,5.83076261,110050.0,110040.0,0.01624698]
[1751537923685,1.14838458,110050.0,110040.0,0.00024698]
[1751537923916,6.18038458,110050.0,110040.0,0.00024698]
[1751537934940,6.14838458,110050.0,110040.0,0.00024698]
[1751537935902,6.17958458,110050.0,110040.0,0.00024698]
[1751537938702,6.14838458,110050.0,110040.0,0.00024698]
[1751537939831,5.83076261,110050.0,110040.0,0.00024698]
[1751537940065,6.14838458,110050.0,110040.0,0.00024698]
[1751537940275,6.17556738,110050.0,110040.0,0.00024698]
[1751537941501,6.20666738,110050.0,110040.0,0.00024698]
[1751537943417,6.24291111,110050.0,110040.0,0.00024698]
[1751537943650,1.24291111,110050.0,110040.0,0.00024698]
[1751537943864,6.20339563,110050.0,110040.0,0.00024698]
[1751537944548,6.20339563,110050.0,110040.0,0.00876439]
[1751537944961,6.54987191,110050.0,110040.0,0.00876439]
[1751537945203,0.34085686,110030.0,110020.0,0.0002]
[1751537945409,6.38881358,110030.0,110020.0,0.02576237]
[1751537945609,6.47709043,110030.0,110020.0,0.02576237]
[1751537945826,6.4736642,110030.0,110020.0,0.00872079]
[1751537946038,6.5537918,110030.0,110020.0,0.00872079]
[1751537946248,6.51755323,110030.0,110020.0,0.00872079]
[1751537946506,6.54380053,110030.0,110020.0,0.00872079]
[1751537946942,6.61755323,110030.0,110020.0,0.00872079]
[1751537947342,0.19087421,110020.0,110010.0,0.0002]
[1751537947558,0.34228636,110000.0,109990.0,0.0002]
[1751537947830,0.34228636,110000.0,109990.0,0.0172453]
[1751537947831,5.79114727,110000.0,109990.0,0.0172453]
[1751537948050,5.79532591,110000.0,109990.0,0.0172453]
[1751537948265,5.43372329,110000.0,109990.0,0.0172453]
[1751537948486,5.52516022,110000.0,109990.0,0.0172453]
[1751537948695,5.84320309,110000.0,109990.0,0.0002]
[1751537948905,5.8433439,110000.0,109990.0,0.0002]
[1751537949118,5.87050365,110000.0,109990.0,0.0002]
[1751537949336,5.8433439,110000.0,109990.0,0.0002]
[1751537949764,5.8763439,110000.0,109990.0,0.0002]
[1751537950436,5.8763439,110000.0,109990.0,0.0072]
[1751537950437,6.19538677,110000.0,109990.0,0.0072]
[1751537950647,6.24740587,110000.0,109990.0,0.0072]
[1751537951532,6.25876349,110000.0,109990.0,0.0072]
[1751537951767,6.25876349,110000.0,109990.0,0.0002]
[1751537951768,6.25776349,110000.0,109990.0,0.0002]
[1751537951977,6.33060374,110000.0,109990.0,0.0002]
[1751537952193,6.35867081,110000.0,109990.0,0.0012]
[1751537952628,6.36067081,110000.0,109990.0,0.0012]
[1751537953318,5.72458507,110000.0,109990.0,1e-08]
[1751537953533,5.27440372,109990.0,109980.0,0.00016001]
[1751537953750,6.04502179,109990.0,109980.0,0.00016001]
[1751537954845,5.99602179,109990.0,109980.0,0.00316001]
[1751537955061,5.65092993,109990.0,109980.0,0.00316001]
[1751537955273,5.63532993,109990.0,109980.0,0.00316001]
[1751537955496,5.61882993,109990.0,109980.0,0.00316001]
[1751537955723,5.64617493,109990.0,109980.0,0.00316001]
[1751537957666,5.32813206,109990.0,109980.0,0.00316001]
[1751537957894,5.9642178,109990.0,109980.0,0.00316001]
[1751537958394,5.35893206,109990.0,109980.0,0.00316001]
[1751537958632,5.9950178,109990.0,109980.0,0.00316001]
[1751537958886,0.34232107,109980.0,109970.0,0.02266532]
[1751537959122,6.0989934,109980.0,109970.0,0.02266532]
[1751537960284,6.11679126,109980.0,109970.0,0.02266532]
[1751537960533,6.11779126,109980.0,109970.0,0.02666532]
[1751537960974,6.14513526,109980.0,109970.0,0.02766532]
[1751537961192,0.82709239,109980.0,109970.0,0.02766532]
[1751537961403,6.14513526,109980.0,109970.0,0.02766532]
[1751537961624,6.1159856,109980.0,109970.0,0.02766532]
[1751537963771,5.47989986,109980.0,109970.0,0.02766532]
[1751537963906,0.47989986,109980.0,109970.0,0.02766532]
[1751537964116,0.79794273,109980.0,109970.0,0.02766532]
[1751537964410,0.88937966,109980.0,109970.0,0.02766532]
[1751537965515,0.30714093,109980.0,109970.0,0.02766532]
[1751537965630,0.8161276,109980.0,109970.0,0.02766532]
[1751537966035,0.49808473,109980.0,109970.0,0.02766532]
[1751537966237,0.30714093,109980.0,109970.0,0.02766532]
[1751537966454,0.8161276,109980.0,109970.0,0.02766532]
[1751537966659,0.90756453,109980.0,109970.0,0.03613967]
[1751537966858,0.5978398,109980.0,109970.0,0.03613967]
[1751537967110,0.60693227,109980.0,109970.0,0.03633967]
[1751537967329,0.78878351,109980.0,109970.0,0.03633967]
[1751537971468,0.7796912,109980.0,109970.0,0.03633967]
[1751537971675,0.77059881,109980.0,109970.0,0.03633967]
[1751537971826,0.86203574,109980.0,109970.0,0.03633967]
[1751537972245,0.85294327,109980.0,109970.0,0.03633967]
[1751537974696,0.5349004,109980.0,109970.0,0.03633967]
[1751537974928,0.85294327,109980.0,109970.0,0.03633967]
[1751537975298,0.87465796,109980.0,109970.0,0.02867435]
[1751537975716,0.55661509,109980.0,109970.0,0.02867435]
[1751537975924,0.85294327,109980.0,109970.0,0.02867435]
[1751537976135,0.87465796,109980.0,109970.0,0.02867435]
[1751537977280,0.87465796,109980.0,109970.0,0.01367435]
[1751537977502,6.25164283,109980.0,109970.0,0.01367435]
[1751537977918,6.30355117,109980.0,109970.0,0.01367435]
[1751537978123,6.27869182,109980.0,109970.0,0.01367435]
[1751537978523,6.2931941,109980.0,109970.0,0.01367435]
[1751537979068,5.65710836,109980.0,109970.0,0.01367435]
[1751537979287,6.2931941,109980.0,109970.0,0.01367435]
[1751537979498,6.11614511,109980.0,109970.0,0.0052]
[1751537982036,6.75094866,109980.0,109970.0,1e-08]
[1751537982247,0.35146779,109950.0,109940.0,0.0114639]
[1751537982472,6.14094012,109950.0,109940.0,0.01998334]
[1751537982888,6.16807954,109950.0,109940.0,0.01998334]
[1751537983528,6.16822025,109950.0,109940.0,0.01998334]
[1751537984002,6.48626312,109950.0,109940.0,0.01998334]
[1751537984225,6.16822025,109950.0,109940.0,0.01998334]
[1751537984434,1.16822025,109950.0,109940.0,0.01998334]
[1751537984672,6.20440614,109950.0,109940.0,0.01998334]
[1751537984882,6.20440614,109950.0,109940.0,0.0114639]
[1751537985326,6.16822025,109950.0,109940.0,0.0114639]
[1751537986225,6.16822025,109950.0,109940.0,0.0124639]
[1751537987338,6.16922025,109950.0,109940.0,0.0144639]
[1751537987804,6.19657425,109950.0,109940.0,0.0144639]
[1751537988274,6.21804688,109950.0,109940.0,0.0144639]
[1751537988493,6.56322917,109950.0,109940.0,0.0144639]
[1751537988706,0.20154061,109910.0,109900.0,0.07745]
[1751537988931,0.34632814,109910.0,109900.0,0.07054857]
[1751537989365,5.66437101,109910.0,109900.0,0.07054857]
[1751537989575,5.34632814,109910.0,109900.0,0.07054857]
[1751537989792,0.66437101,109910.0,109900.0,0.07054857]
[1751537990018,0.6284462,109910.0,109900.0,0.07054857]
[1751537990232,0.12843578,109910.0,109900.0,0.10174857]
[1751537990448,0.12843562,109910.0,109900.0,0.10174857]
[1751537990670,0.44847849,109910.0,109900.0,0.10474857]
[1751537990902,0.45857634,109910.0,109900.0,0.10874857]
[1751537991111,0.45857634,109910.0,109900.0,0.10574857]
[1751537991112,0.52154025,109910.0,109900.0,0.10574857]
[1751537991327,0.5417367,109910.0,109900.0,0.10874857]
[1751537991533,0.7055083,109910.0,109900.0,0.10874857]
[1751537991947,0.7055083,109910.0,109900.0,0.09284857]
[1751537992176,0.84641045,109910.0,109900.0,0.07754857]
[1751537993977,0.46340367,109910.0,109900.0,0.07754857]
[1751537994215,0.78144654,109910.0,109900.0,0.07754857]
[1751537994427,0.78814844,109910.0,109900.0,0.07754857]
[1751537995338,0.47010557,109910.0,109900.0,0.07754857]
[1751537995515,0.77234844,109910.0,109900.0,0.07754857]
[1751537995715,0.86378537,109910.0,109900.0,0.07754857]
[1751537996151,0.89678537,109910.0,109900.0,0.07754857]
[1751537996351,5.89678537,109910.0,109900.0,0.07754857]
[1751537997125,5.89478537,109910.0,109900.0,0.07454857]
[1751537997400,5.89378537,109910.0,109900.0,0.07054857]
[1751537997600,5.89478537,109910.0,109900.0,0.07254857]
[1751537997772,5.89378537,109910.0,109900.0,0.07154857]
[1751537997966,6.21182824,109910.0,109900.0,0.07054857]
[1751537998171,5.89478537,109910.0,109900.0,0.06305]
[1751537998374,5.89478537,109910.0,109900.0,0.06405]
[1751538000072,5.89478537,109910.0,109900.0,0.002]
[1751538000902,6.21282824,109910.0,109900.0,0.002]
[1751538001104,5.89478537,109910.0,109900.0,0.002]
[1751538001838,6.21282824,109910.0,109900.0,0.002]
[1751538003341,6.26282824,109910.0,109900.0,0.002]
[1751538003596,6.26282824,109910.0,109850.0,0.00035684]
[1751538003597,5.41429418,109880.0,109850.0,0.00035684]
[1751538003815,5.41429418,109880.0,109850.0,0.00883351]
[1751538003816,6.06861745,109860.0,109850.0,0.00883351]
[1751538004043,6.06861745,109860.0,109850.0,0.00035684]
[1751538004242,5.43765082,109860.0,109850.0,0.00035684]
[1751538004560,5.51328775,109860.0,109850.0,0.00035684]
[1751538004806,6.14937349,109860.0,109850.0,0.00135684]
[1751538005014,0.49818775,109860.0,109850.0,0.00135684]
[1751538005235,0.34818817,109860.0,109850.0,0.00882584]
[1751538005443,0.66637156,109860.0,109850.0,0.00882584]
[1751538005653,0.78962945,109860.0,109850.0,0.01082584]
[1751538005860,5.47158658,109860.0,109850.0,0.01082584]
[1751538006017,6.19910925,109860.0,109850.0,0.00235684]
[1751538006218,5.55154651,109860.0,109850.0,0.00235684]
[1751538006422,6.22876768,109860.0,109850.0,0.00335684]
[1751538006590,6.25614468,109860.0,109850.0,0.00335684]
[1751538006790,6.23060925,109860.0,109850.0,0.00335684]
[1751538007033,5.59452351,109860.0,109850.0,0.00335684]
[1751538007268,6.57576534,109860.0,109850.0,0.00335684]
[1751538007494,6.35772247,109860.0,109850.0,0.00335684]
[1751538008440,6.30772247,109860.0,109850.0,0.00335684]
[1751538008643,5.67163673,109860.0,109850.0,0.00335684]
[1751538008834,6.25772247,109860.0,109850.0,0.00335684]
[1751538009043,5.67163673,109860.0,109850.0,0.00335684]
[1751538009245,6.30772247,109860.0,109850.0,0.00335684]
[1751538010122,6.25772247,109860.0,109850.0,0.00335684]
[1751538010430,6.30772247,109860.0,109850.0,0.00335684]
[1751538010648,5.62163673,109860.0,109850.0,0.00335684]
[1751538010844,6.30772247,109860.0,109850.0,0.00335684]
[1751538011131,6.30744938,109860.0,109850.0,0.00335684]
[1751538011281,5.58986364,109860.0,109850.0,0.00335684]
[1751538011680,6.22594938,109860.0,109850.0,0.00335684]
[1751538011882,5.9883224,109860.0,109850.0,0.00335684]
[1751538012275,5.58986364,109860.0,109850.0,0.00335684]
[1751538012515,0.9883224,109860.0,109850.0,0.00335684]
[1751538012719,5.9883224,109860.0,109850.0,0.00335684]
[1751538012919,5.58986364,109860.0,109850.0,0.00335684]
[1751538013118,5.9883224,109860.0,109850.0,0.00335684]
[1751538013528,5.89688547,109860.0,109850.0,0.00335684]
[1751538013944,0.86094294,109860.0,109850.0,0.00335684]
[1751538014153,5.86506594,109860.0,109850.0,0.00335684]
[1751538014354,5.89243794,109860.0,109850.0,0.00335684]
[1751538014559,5.92046247,109860.0,109850.0,0.00335684]
[1751538014766,5.9966994,109860.0,109850.0,0.00335684]
[1751538015097,5.96867487,109860.0,109850.0,0.00335684]
[1751538015299,5.96867487,109860.0,109850.0,0.01865684]
[1751538015300,0.294209,109860.0,109850.0,0.01865684]
[1751538015504,0.30331107,109860.0,109850.0,0.01865684]
[1751538015671,0.31241356,109860.0,109850.0,0.01865684]
[1751538015873,0.29420958,109860.0,109850.0,0.01865684]
[1751538016119,0.38564651,109860.0,109850.0,0.01865684]
[1751538016580,0.29420958,109860.0,109850.0,0.01865684]
[1751538017923,0.28510726,109860.0,109850.0,0.01865684]
[1751538018146,0.28510726,109860.0,109850.0,0.00335684]
[1751538018764,0.28510726,109860.0,109850.0,0.01905684]
[1751538019420,0.68356602,109860.0,109850.0,0.01905684]
[1751538019659,0.77500295,109860.0,109850.0,0.01905684]
[1751538019871,0.37654419,109860.0,109850.0,0.01905684]
[1751538020125,0.77500295,109860.0,109850.0,0.01905684]
[1751538020367,0.77500295,109860.0,109850.0,0.00335684]
[1751538022094,0.37654419,109860.0,109850.0,0.00335684]
[1751538022313,0.77500295,109860.0,109850.0,0.00335684]
[1751538023266,0.37654419,109860.0,109850.0,0.00335684]
[1751538023604,0.77500295,109860.0,109850.0,0.00335684]
[1751538023794,0.37654419,109860.0,109850.0,0.00335684]
[1751538023989,0.77500295,109860.0,109850.0,0.00335684]
[1751538024434,0.37654419,109860.0,109850.0,0.00335684]
[1751538024637,0.77500295,109860.0,109850.0,0.00335684]
[1751538024795,0.37654419,109860.0,109850.0,0.00335684]
[1751538024996,0.77500295,109860.0,109850.0,0.00335684]
[1751538025218,0.77500295,109860.0,109850.0,0.01184937]
[1751538025422,0.68356602,109860.0,109850.0,0.01184937]
[1751538026024,0.68356602,109860.0,109850.0,0.04344937]
[1751538026025,0.10167944,109860.0,109850.0,0.04344937]
[1751538026269,0.09395489,109860.0,109850.0,0.03495684]
[1751538026476,0.00251796,109860.0,109850.0,0.03495684]
[1751538026864,0.00151796,109860.0,109850.0,0.03295684]
[1751538027282,0.00251796,109860.0,109850.0,0.03295684]
[1751538027486,0.00151796,109860.0,109850.0,0.03295684]
[1751538027976,0.00351796,109860.0,109850.0,0.03195684]
[1751538031481,0.00451796,109860.0,109850.0,0.03823267]
[1751538031707,0.00451796,109860.0,109850.0,0.03595684]
[1751538032159,0.00491796,109860.0,109850.0,0.03595684]
[1751538034343,0.00491796,109860.0,109850.0,0.03823267]
[1751538035436,0.00491796,109860.0,109850.0,0.03595684]
[1751538036055,0.00491796,109860.0,109850.0,0.03823267]
[1751538037805,0.00354052,109860.0,109850.0,0.03823267]
[1751538038180,0.00354052,109860.0,109850.0,0.35684914]
[1751538038379,0.00354052,109860.0,109850.0,0.03595684]
[1751538038616,0.00354052,109860.0,109850.0,0.03823267]
[1751538039345,0.00354052,109860.0,109850.0,0.03595684]
[1751538039618,0.00354052,109860.0,109850.0,0.03823267]
[1751538039832,0.00354052,109860.0,109850.0,0.03595684]
[1751538040200,0.00354052,109860.0,109850.0,0.35457331]
[1751538041805,0.00354052,109860.0,109850.0,0.03595684]
[1751538043257,0.00354052,109860.0,109850.0,0.02085684]
[1751538044047,0.00354052,109860.0,109850.0,0.38912064]
[1751538044257,0.00354052,109860.0,109850.0,0.03655684]
[1751538051551,0.00354052,109860.0,109850.0,0.35744914]
[1751538051746,0.00354052,109860.0,109850.0,0.35517331]
[1751538053504,0.00354052,109860.0,109850.0,0.3915386]
[1751538055561,0.00354052,109860.0,109850.0,0.07292213]
[1751538055760,0.00354052,109860.0,109850.0,0.3915386]
[1751538056020,0.00354052,109860.0,109850.0,0.43613802]
[1751538056661,0.00354052,109860.0,109850.0,0.3915386]
[1751538058607,0.00154052,109860.0,109850.0,0.3915386]
[1751538058782,0.00154052,109860.0,109850.0,0.68313233]
[1751538059002,0.00154052,109860.0,109850.0,1.02900391]
[1751538059186,0.00154052,109860.0,109850.0,1.03810706]
[1751538059343,0.00054052,109860.0,109850.0,0.74982135]
[1751538059551,0.00154052,109860.0,109850.0,1.12916337]
[1751538059761,0.00154052,109860.0,109850.0,1.13826627]
[1751538059984,0.00154052,109860.0,109850.0,1.13216337]
[1751538060335,0.00154052,109860.0,109850.0,0.8135469]
[1751538060458,0.00254052,109860.0,109850.0,0.8175469]
[1751538060654,0.00254052,109860.0,109850.0,0.80844391]
[1751538060876,0.00254052,109860.0,109850.0,0.8175469]
[1751538061289,0.00254052,109860.0,109850.0,0.79934084]
[1751538061489,0.00254052,109860.0,109850.0,0.23182898]
[1751538061692,0.00254052,109860.0,109850.0,0.51358622]
[1751538062323,0.00254052,109860.0,109850.0,0.72296188]
[1751538062529,0.00254052,109860.0,109850.0,1.04472595]
[1751538062727,0.00254052,109860.0,109850.0,1.11733347]
[1751538063334,0.00254052,109860.0,109850.0,1.044719]
[1751538063686,0.00154052,109860.0,109850.0,1.22291533]
[1751538063885,0.00154052,109860.0,109850.0,1.21691533]
[1751538063886,0.00054052,109860.0,109850.0,1.21691533]
[1751538064046,0.07314286,109900.0,109870.0,0.21842476]
[1751538064252,0.07328396,109900.0,109890.0,0.37768245]
[1751538064411,0.07328396,109900.0,109890.0,0.38407378]
[1751538064644,0.07328396,109900.0,109890.0,0.43031464]
[1751538065302,0.07328396,109900.0,109890.0,0.52175157]
[1751538065948,0.0001411,109900.0,109890.0,0.52175157]
[1751538066181,0.0001411,109900.0,109890.0,0.55810621]
[1751538066394,0.0001411,109900.0,109890.0,0.23948974]
[1751538066598,0.0001411,109900.0,109890.0,0.1866351]
[1751538066813,0.0001411,109900.0,109890.0,0.00639133]
[1751538067046,0.0001411,109900.0,109890.0,0.00939133]
[1751538067461,0.0021411,109900.0,109890.0,0.01039133]
[1751538067667,0.0021411,109900.0,109890.0,0.34857315]
[1751538067872,0.0001411,109900.0,109890.0,0.49720106]
[1751538068021,0.0001411,109900.0,109890.0,0.55610812]
[1751538068226,0.0041411,109900.0,109890.0,0.55610812]
[1751538068680,0.0041411,109900.0,109890.0,0.23749165]
[1751538068903,0.0041411,109900.0,109890.0,0.55610812]
[1751538069121,0.0041411,109900.0,109890.0,0.55603091]
[1751538069347,0.0041411,109900.0,109890.0,0.52884214]
[1751538069571,0.0001411,109900.0,109890.0,0.55503091]
[1751538069774,0.0001411,109900.0,109890.0,0.21981444]
[1751538070016,0.0011411,109900.0,109890.0,0.4652335]
[1751538070430,0.0174411,109900.0,109890.0,0.3300078]
[1751538070849,0.0174411,109900.0,109890.0,0.3270078]
[1751538071279,0.35225757,109900.0,109890.0,0.01239133]
[1751538071909,0.35225757,109900.0,109890.0,0.00839133]
[1751538072156,0.50993611,109900.0,109890.0,0.00839133]
[1751538072362,0.64515654,109900.0,109890.0,0.01339133]
[1751538072591,0.46417292,109900.0,109890.0,0.01339133]
[1751538072990,0.64615654,109900.0,109890.0,0.01339133]
[1751538073273,0.64615654,109900.0,109890.0,0.01139133]
[1751538073274,0.22740884,109900.0,109890.0,0.01139133]
[1751538073515,0.46317292,109900.0,109890.0,0.01139133]
[1751538073734,0.46617284,109900.0,109890.0,0.01239133]
[1751538074467,0.37383229,109900.0,109890.0,0.00739133]
[1751538074800,0.37383229,109900.0,109890.0,0.00939133]
[1751538075232,0.0031411,109900.0,109890.0,0.3280078]
[1751538075445,0.0031411,109900.0,109890.0,0.3777861]
[1751538075655,0.0031411,109900.0,109890.0,0.48472303]
[1751538076297,0.0031411,109900.0,109890.0,0.66670066]
[1751538076502,0.0031411,109900.0,109890.0,0.52098925]
[1751538076715,0.0001411,109900.0,109890.0,0.51088925]
[1751538076921,0.0001411,109900.0,109890.0,0.51998925]
[1751538077155,0.0011411,109900.0,109890.0,0.52298917]
[1751538077383,0.0011411,109900.0,109890.0,0.71408919]
[1751538077601,0.0011411,109900.0,109890.0,0.70498935]
[1751538077805,0.0011411,109900.0,109890.0,1.02160582]
[1751538078009,0.0011411,109900.0,109890.0,0.79129703]
[1751538078221,0.0011411,109900.0,109890.0,0.59109709]
[1751538078438,0.0011411,109900.0,109890.0,0.60019709]
[1751538078644,0.0011411,109900.0,109890.0,0.59509709]
[1751538078850,0.0011411,109900.0,109890.0,0.1972723]
[1751538080388,0.0011411,109900.0,109890.0,0.1817723]
[1751538081022,0.0011411,109900.0,109890.0,0.175404]
[1751538081237,0.0011411,109900.0,109890.0,0.1817727]
[1751538081467,0.0011411,109900.0,109890.0,0.20895096]
[1751538082096,0.0011411,109900.0,109890.0,0.19375096]
[1751538082307,0.0011411,109900.0,109890.0,0.2301056]
[1751538082519,0.0015411,109900.0,109890.0,0.19374653]
[1751538082737,0.0015411,109900.0,109890.0,0.23010117]
[1751538083183,0.0015411,109900.0,109890.0,0.62792596]
[1751538083406,0.0015411,109900.0,109890.0,0.91784771]
[1751538083647,0.0015411,109900.0,109890.0,0.90884069]
[1751538084327,0.0015411,109900.0,109890.0,0.97701802]
[1751538084517,0.0015411,109900.0,109890.0,1.00436102]
[1751538085204,0.0015411,109900.0,109890.0,0.92765173]
[1751538085609,0.0025411,109900.0,109890.0,1.00812328]
[1751538086085,0.0025411,109900.0,109890.0,0.95512328]
[1751538086297,0.0015411,109900.0,109890.0,0.93265173]
[1751538086518,0.0025411,109900.0,109890.0,1.00811993]
[1751538086950,0.0015411,109900.0,109890.0,1.00511993]
[1751538087175,0.0015411,109900.0,109890.0,0.93265173]
[1751538087427,0.0015411,109900.0,109890.0,1.01112312]
[1751538087428,0.0025411,109900.0,109890.0,1.01112312]
[1751538088314,0.0025411,109900.0,109890.0,0.93865173]
[1751538088539,0.0025411,109900.0,109890.0,1.01113521]
[1751538090223,0.0025411,109900.0,109890.0,0.96113521]
[1751538090454,0.0025411,109900.0,109890.0,0.94693454]
[1751538090705,0.0025411,109900.0,109890.0,0.91959154]
[1751538091422,0.0025411,109900.0,109890.0,0.96959154]
[1751538093359,0.0004,109910.0,109900.0,0.6871275]
[1751538093606,0.0004,109910.0,109900.0,0.87637006]
[1751538094869,0.0004,109910.0,109900.0,0.94885354]
[1751538095155,0.0014,109910.0,109900.0,0.95285354]
[1751538095924,0.0014,109910.0,109900.0,1.35067833]
[1751538096145,0.0014,109910.0,109900.0,1.41895425]
[1751538096334,0.0014,109910.0,109900.0,1.02112946]
[1751538096990,0.0014,109910.0,109900.0,1.42395425]
[1751538097622,0.07314286,109940.0,109930.0,0.67097038]
[1751538097829,0.07314286,109940.0,109930.0,0.88657327]
[1751538098440,0.07314286,109940.0,109930.0,0.90274129]
[1751538098869,0.07328393,109940.0,109930.0,0.90274129]
[1751538099078,0.07328393,109940.0,109930.0,0.5049165]
[1751538099281,0.07328393,109940.0,109930.0,0.88714138]
[1751538099483,0.07328393,109940.0,109930.0,0.83282056]
[1751538099686,0.07328393,109940.0,109930.0,0.84191667]
[1751538099889,0.07328393,109940.0,109930.0,0.83282056]
[1751538100008,0.07328393,109940.0,109930.0,0.83282064]
[1751538100216,0.07328393,109940.0,109930.0,0.82646746]
[1751538100441,0.07528393,109940.0,109930.0,0.83556399]
[1751538100856,0.07528393,109940.0,109930.0,0.84466043]
[1751538101059,0.07528393,109940.0,109930.0,0.83556399]
[1751538101257,0.00314107,109940.0,109930.0,0.84466043]
[1751538101466,0.00314107,109940.0,109930.0,0.83556399]
[1751538101985,0.00314107,109940.0,109930.0,0.82646746]
[1751538102191,0.00214107,109940.0,109930.0,0.63543637]
[1751538102349,0.00214107,109940.0,109930.0,0.64453306]
[1751538102576,0.00314107,109940.0,109930.0,0.83756362]
[1751538102781,0.00314107,109940.0,109930.0,0.84666015]
[1751538102977,0.00314107,109940.0,109930.0,0.83756362]
[1751538103188,0.00114107,109940.0,109930.0,0.83756362]
[1751538103382,0.00114107,109940.0,109930.0,0.61028968]
[1751538103582,0.00114107,109940.0,109930.0,0.61128968]
[1751538103848,0.00114107,109940.0,109930.0,0.62038637]
[1751538104009,0.00114107,109940.0,109930.0,0.81141693]
[1751538104616,0.00114107,109940.0,109930.0,0.61128968]
[1751538105265,0.00114107,109940.0,109930.0,0.80232823]
[1751538105438,0.00114107,109940.0,109930.0,0.86574566]
[1751538105858,0.00114107,109940.0,109930.0,0.85664905]
[1751538106103,0.00114107,109940.0,109930.0,0.90734219]
[1751538106312,0.00114107,109940.0,109930.0,0.88932078]
[1751538106519,0.00114107,109940.0,109930.0,0.90742773]
[1751538106725,0.00114107,109940.0,109930.0,0.93476173]
[1751538107344,0.00114107,109940.0,109930.0,0.98476173]
[1751538108790,0.00114107,109940.0,109930.0,0.93476173]
[1751538109182,0.00114107,109940.0,109930.0,0.98476173]
[1751538110129,0.00114107,109940.0,109930.0,0.10913062]
[1751538110130,0.03234107,109940.0,109930.0,0.10913062]
[1751538110335,0.10548393,109940.0,109930.0,0.09104451]
[1751538110645,0.10548393,109940.0,109930.0,0.03018604]
[1751538112198,0.12367458,109940.0,109930.0,0.03018604]
[1751538112401,0.60521857,109940.0,109930.0,0.003]
[1751538112612,0.59612304,109940.0,109930.0,0.003]
[1751538112847,0.13414739,109940.0,109930.0,0.003]
[1751538113075,0.11595657,109940.0,109930.0,0.003]
[1751538113297,0.12505194,109940.0,109930.0,0.003]
[1751538113754,0.12505194,109940.0,109930.0,0.002]
[1751538114002,0.13614739,109940.0,109930.0,0.002]
[1751538114213,0.0321,109930.0,109910.0,0.03624806]
[1751538114426,0.0323,109920.0,109910.0,0.15972518]
[1751538116155,0.001,109920.0,109910.0,0.16172518]
[1751538116372,0.001,109920.0,109910.0,0.16192518]
[1751538118981,0.0314,109920.0,109910.0,0.16192518]
[1751538120913,0.0314,109920.0,109910.0,0.16292518]
[1751538121964,0.0314,109920.0,109910.0,0.16519976]
[1751538122574,0.0314,109920.0,109910.0,0.16292518]
[1751538124917,0.0314,109920.0,109910.0,0.16519976]
[1751538125332,0.0314,109920.0,109910.0,0.16292518]
[1751538126408,0.0314,109920.0,109910.0,0.19012868]
[1751538127259,0.0163,109920.0,109910.0,0.19012868]
[1751538127455,0.0163,109920.0,109910.0,0.58795347]
[1751538127813,0.0163,109920.0,109910.0,0.19012868]
[1751538128396,0.0328,109920.0,109910.0,0.19012868]
[1751538128599,0.0163,109920.0,109910.0,0.19012868]
[1751538129186,0.0328,109920.0,109910.0,0.19012868]
[1751538130558,0.0163,109920.0,109910.0,0.50835005]
[1751538130788,0.0319,109920.0,109910.0,0.50835005]
[1751538131199,0.0319,109920.0,109910.0,0.48114655]
[1751538131370,0.0319,109920.0,109910.0,0.50834877]
[1751538131574,0.0319,109920.0,109910.0,0.48114655]
[1751538134821,0.0319,109920.0,109910.0,0.16292518]
[1751538135074,0.22418,109920.0,109910.0,0.48342113]
[1751538135282,0.20858,109920.0,109910.0,0.48114655]
[1751538136094,0.0163,109920.0,109910.0,0.16292518]
[1751538136407,0.20846,109920.0,109910.0,0.48114655]
[1751538137470,0.20846,109920.0,109910.0,0.53548821]
[1751538137675,0.0163,109920.0,109910.0,0.53548821]
[1751538138142,0.20826,109920.0,109910.0,0.53548821]
[1751538138582,0.0163,109920.0,109910.0,0.53548821]
[1751538138803,0.20822,109920.0,109910.0,0.53548821]
[1751538139474,0.20822,109920.0,109910.0,0.49924015]
[1751538140121,0.22452,109920.0,109910.0,0.49924015]
[1751538140991,0.22452,109920.0,109910.0,0.50564032]
[1751538141412,0.22452,109920.0,109910.0,0.45129866]
[1751538141590,0.22452,109920.0,109910.0,0.13307729]
[1751538141836,0.22452,109920.0,109910.0,0.45129866]
[1751538142457,0.22452,109920.0,109910.0,0.52372643]
[1751538143309,0.22452,109920.0,109910.0,0.20550506]
[1751538143579,0.0326,109920.0,109910.0,0.20550506]
[1751538143763,0.22424,109920.0,109910.0,0.20550506]
[1751538144005,0.22424,109920.0,109910.0,0.2055076]
[1751538146048,0.22424,109920.0,109910.0,0.22258336]
[1751538146901,0.22424,109920.0,109910.0,0.22258386]
[1751538147326,0.22324,109920.0,109910.0,0.22258386]
[1751538148181,0.20694,109920.0,109910.0,0.54080523]
[1751538149065,0.19136,109920.0,109910.0,0.54080523]